Cogmind - Beta 16.1 @@@ ROGUE MODE // 2026.02.10 @ 04:12:45 Player: Megaknight51 Result: Destroyed by 51-VPM(R) with Subdweller Machine Gun Performance ------------- Evolutions (0) 0 Regions Visited (2) 400 Robots Destroyed (37) 185 Value Destroyed (768) 768 Prototype IDs (2) 40 Alien Tech Used (0) 0 Bonus (0) 0 TOTAL SCORE: 1393 Bonus ------- None Cogmind --------- Core Integrity 0/250 Matter 206/300 Energy 200/200 System Corruption 5% Temperature Cool (0) Movement Treading (560) Ox4 Location -10/Subcaves Parts ------- > --- POWER (1) -------- Subdweller Power Source > --- PROPULSION (2) --- Spiked Treads > --- UTILITY (2) ------ Huge Storage Unit Improved Terrain Scanner > --- WEAPON (2) ------- Subdweller Machine Gun Subdweller Machine Gun > --- INVENTORY (25) --- Subdweller Power Source Subdweller Power Source Light Treads Light Treads Light Treads Light Treads Machine Analyzer Subdweller Optics Sensor Array Signal Interpreter Recalibrator Small Laser Mining Laser Mace Mace Mace Mace Peak State ------------ > --- POWER ------------ Ion Engine > --- PROPULSION ------- Light Treads Spiked Treads > --- UTILITY ---------- Huge Storage Unit Improved Terrain Scanner > --- WEAPON ----------- Heavy EM Pulse Gun Subdweller Machine Gun > --- INVENTORY -------- Light Treads Light Treads Light Treads Light Treads Machine Analyzer Subdweller Optics Sensor Array Signal Interpreter Recalibrator Small Laser Assault Rifle Mining Laser Mace Mace Mace Mace [Rating: 14] Favorites ----------- Power Ion Engine Engine Ion Engine Propulsion Light Treads Treads Light Treads Utility Huge Storage Unit Device Improved Terrain Scanner Storage Huge Storage Unit Protection Propulsion Shielding Weapon Assault Rifle Energy Gun Heavy EM Pulse Gun Ballistic Gun Assault Rifle Launcher Grenade Launcher Impact Weapon Mace Build | -11 -10 -10 ------- Run | Yrd Mat Sub Slots Evolved . | . . . Power . | . . . Propulsion . | . . . Utility . | . . . Weapon . | . . . Parts Attached 30 | 6 12 12 Power 4 | 1 2 1 Engine 4 | 1 2 1 Core . | . . . Reactor . | . . . Propulsion 5 | 2 1 2 Treads 5 | 2 1 2 Leg . | . . . Wheel . | . . . Hover . | . . . Flight . | . . . Utility 6 | 1 3 2 Device 2 | . . 2 Storage 3 | 1 2 . Processor . | . . . Hackware . | . . . Protection 1 | . 1 . Artifact . | . . . Weapon 15 | 2 6 7 Energy Gun 4 | . 2 2 Energy Cannon . | . . . Ballistic Gun 9 | 2 4 3 Ballistic Cannon . | . . . Launcher 1 | . . 1 Special Weapon . | . . . Impact Weapon 1 | . . 1 Slashing Weapon . | . . . Piercing Weapon . | . . . Special Melee Weapon . | . . . Unidentified Prototypes . | . . . Corrupted Parts 1 | . . 1 System Corruption 5 | . . 5 Parts Lost 12 | . 2 10 Power 2 | . 1 1 Propulsion 2 | . . 2 Utility 1 | . . 1 Weapon 7 | . 1 6 Highest Loss Streak 3 | . 1 3 To Critical Strikes . | . . . Average Backups 13 | 1 11 15 Power . | . . . Propulsion 3 | . 1 3 Utility 4 | . 3 5 Weapon 6 | . 5 6 Tool/Special . | . . . Unused Backups 17 | . 4 13 Power 4 | . 3 1 Propulsion 2 | . . 2 Utility 5 | . . 5 Weapon 6 | . 1 5 Tool/Special . | . . . Average Slot Usage (%) 89 | . 93 87 Engine 13 | . 14 13 Treads 21 | . 28 18 Device 7 | . . 11 Storage 14 | . 14 14 Protection 3 | . 8 . Energy Gun 8 | . 9 8 Ballistic Gun 18 | . 18 18 Peak Build Rating 14 | 6 12 14 Average Rating 10 | 5 8 12 On Entrance 6 | . 6 12 Avg Prop Armor Cover (%) . | . . . Naked Turns . | . . . Heaviest Build 94 | 10 92 94 Greatest Support 40 | 40 40 40 Greatest Overweight (x) 4 | . 2 4 Average Overweight (x) 1 | . . 3 Largest Inventory Capacity 25 | 8 25 25 Average Capacity 21 | 7 15 25 Most Carried 19 | 3 19 19 Average Carried 13 | 1 11 15 Final Capacity 25 | 8 25 25 Final Carried 19 | 3 19 17 Class Distribution -------------------- 100% | Mutant Dominant Class ---------------- Mutant | -10/Materials Mutant | -10/Subcaves Resources | -11 -10 -10 ----------- Run | Yrd Mat Sub Matter Collected 973 | 294 335 344 Remotely . | . . . Salvage Created 1078 | 51 681 346 Parts 79 | 1 58 20 Haulers Intercepted 2 | . 2 . Recyclers Shooed 1 | 1 . . Parts Field Recycled . | . . . Retrieved Matter . | . . . Parts Self-Destructed 20 | . . 20 Prevented 2 | . . 2 Parts Restored . | . . . Kills | -11 -10 -10 ------- Run | Yrd Mat Sub Combat Hostiles Destroyed 29 | . 18 11 Guns 25 | . 18 7 AOE 1 | . . 1 Classes Destroyed 8 | 1 6 1 Worker 1 | . 1 . Builder 2 | . 2 . Tunneler 2 | 2 . . Hauler 2 | . 2 . Mechanic 1 | . 1 . Swarmer 13 | . 9 4 Grunt 9 | . 9 . Subdweller 7 | . . 7 Best Kill Streak 4 | 1 4 3 Combat Bots Only 3 | . 3 3 Max Kills in Single Turn 2 | 1 2 1 Gunslinging 1 | . 1 . Exploded 1 | . . 1 Melee . | . . . Uniques/NPCs Destroyed . | . . . Combat | -11 -10 -10 -------- Run | Yrd Mat Sub Hostile Shots Fired 160 | . 85 75 Missed 37 | . 17 20 Hits 123 | . 68 55 Projectile 123 | . 68 55 Critical Strikes 2 | . . 2 Damage Taken 1890 | . 708 1182 Core 263 | . 86 177 Absorbed by Shields . | . . . Redirected to Shielding 55 | . 22 33 Core Remaining (%) 100 | 100 . . Volleys Fired 142 | 17 58 67 Largest 2 | 2 2 2 Hottest 90 | 40 90 90 Shots Fired 270 | 34 116 120 Gun 267 | 34 116 117 Cannon . | . . . Launcher 3 | . . 3 Special . | . . . Kinetic 205 | 34 104 67 Thermal . | . . . Explosive 3 | . . 3 Electromagnetic 62 | . 12 50 Robot Hit Streak 21 | 7 21 13 Robot Miss Streak 5 | 2 5 3 Penetration Max . | . . . Secondary Targets 5 | . 5 . Max Gunslinging Chain 1 | . 1 . Shots Hit Robots 162 | 24 80 58 Core Hits 55 | 6 37 12 Critical Kills 1 | . 1 . Critical Parts Destroyed . | . . . Critical Strikes 5 | . 3 2 Destroy 1 | . 1 . Corrupt 4 | . 2 2 Melee Attacks . | . . . Impact . | . . . Slashing . | . . . Piercing . | . . . Sneak Attacks . | . . . Combat Hostiles . | . . . Follow-up Attacks . | . . . Damage Inflicted 2070 | 176 879 1015 Guns 1921 | 176 879 866 Cannons . | . . . Explosions 149 | . . 149 Melee . | . . . Ramming . | . . . Kinetic 1324 | 176 777 371 Thermal . | . . . Explosive 149 | . . 149 Electromagnetic 597 | . 102 495 Impact . | . . . Slashing . | . . . Piercing . | . . . Highest Corruption 5 | . . 5 Average Corruption 5 | . . 5 Corruption Purged . | . . . Corruption Blocked . | . . . Effects 69 | . . 69 Message Errors 23 | . . 23 Matter Fused 14 | . . 14 Heat Flow Errors 4 | . . 4 Energy Discharges 4 | . . 4 Data Loss (minor) 11 | . . 11 Data Loss (major) 8 | . . 8 Misfires 4 | . . 4 Weapon Failures 1 | . . 1 Overload Shots . | . . . Overflow Damage . | . . . Projectiles . | . . . Explosions . | . . . Melee . | . . . Knockbacks . | . . . Impact . | . . . Kinetic . | . . . Secondary . | . . . Self-Inflicted Damage 36 | . . 36 Shots 3 | . . 3 Rammed 1 | . 1 . Targets Rammed 1 | . 1 . Kicked . | . . . Crushed . | . . . Highest Temperature 242 | . 114 242 Average Temperature 60 | . 30 123 Received Heat Transfer 294 | . 192 102 Siege Activations . | . . . Martial Activations . | . . . Shielding Activations . | . . . Robots Disrupted . | . . . Combat Hostiles . | . . . Robots Corrupted 3 | . . 3 Combat Hostiles 3 | . . 3 Parts Fried 4 | . . 4 Impact Corruptions . | . . . Robots Melted . | . . . Combat Hostiles . | . . . Parts Melted . | . . . Heat Transferred . | . . . Parts Sabotaged . | . . . Parts Stolen . | . . . Parts Stripped . | . . . Power Chain Reactions . | . . . Alert | -11 -10 -10 ------- Run | Yrd Mat Sub Maximum Alert Level . | . . . Low Security (%) 100 | 100 100 . Level 1 . | . . . Level 2 . | . . . Level 3 . | . . . Level 4 . | . . . Level 5 . | . . . High Security . | . . . Max Security . | . . . Peak Influence 156 | 5 156 . Initial . | . . . Average 47 | . 52 . Influence Increases 699 | 10 519 170 Destroy 0b10 Robot/C 440 | . 360 80 Destroy 0b10 Robot/NC 40 | 10 30 . Destroy Leader 84 | . 84 . Select Force Hacks 30 | . 30 . Disable Machine 15 | . 15 . Lose Combat Pursuer 90 | . . 90 Influence Decreases 699 | 10 513 176 Entered New Map 4 | . . 4 Time Decay 645 | 10 493 142 Lost Part 50 | . 20 30 Squads Dispatched 5 | . 5 . Investigation 4 | . 4 . Extermination . | . . . Reinforcement 1 | . 1 . Assault . | . . . Garrison . | . . . Intercept . | . . . Searches Triggered . | . . . Construction Impeded . | . . . Haulers Reinforced . | . . . Active Scanning Responses . | . . . Cargo Convoy Interrupts . | . . . Stealth | -11 -10 -10 --------- Run | Yrd Mat Sub Distress Signals . | . . . Communications Jammed . | . . . Distress Signals . | . . . Times Spotted 40 | . 27 13 Peak Tracking Total 4 | . 3 4 Tactical Retreats 2 | . . 2 Traps | -11 -10 -10 ------- Run | Yrd Mat Sub Traps Triggered 10 | . 6 4 Indirectly . | . . . Trap Hack Attempts . | . . . Triggered . | . . . Disarmed . | . . . Reprogrammed . | . . . Reused . | . . . Traps Extracted . | . . . Installed . | . . . Triggered . | . . . Machines | -11 -10 -10 ---------- Run | Yrd Mat Sub Machines Disabled 2 | . 1 1 Max in Single Turn 1 | . 1 1 Machines Repaired . | . . . Machines Dismantled . | . . . Machines Sabotaged . | . . . Overloaded Fab Kills . | . . . Hacking | -11 -10 -10 --------- Run | Yrd Mat Sub Machines Accessed 5 | . 5 . Terminals 4 | . 4 . Fabricators . | . . . Repair Stations . | . . . Recycling Units 1 | . 1 . Scanalyzers . | . . . Garrison Access . | . . . Total Hacks 10 | . 10 . Successful 3 | . 3 . Failed 6 | . 6 . Catastrophic . | . . . Database Lockouts 1 | . 1 . Manual 5 | . 5 . Terminals 9 | . 9 . Fabricators . | . . . Repair Stations . | . . . Recycling Units 1 | . 1 . Scanalyzers . | . . . Garrison Access . | . . . Terminal Hacks 2 | . 2 . Robot Analysis 1 | . 1 . Prototype ID Bank 1 | . 1 . Fabricator Hacks . | . . . Repair Station Hacks . | . . . Recycling Unit Hacks . | . . . Scanalyzer . | . . . Garrison Access Hacks . | . . . Unauthorized Hacks 1 | . 1 . Terminals . | . . . Fabricators . | . . . Repair Stations . | . . . Recycling Units 1 | . 1 . Tunnel 1 | . 1 . Scanalyzers . | . . . Garrison Access . | . . . Data Cores Recovered . | . . . Used . | . . . Hacking Detections 3 | . 3 . Full Trace Events . | . . . Feedback Events . | . . . Feedback Blocked . | . . . Robot Schematics Acquired . | . . . Robots Built . | . . . Authchips . | . . . Time . | . . . Total Robot Build Rating . | . . . Part Schematics Acquired . | . . . Parts Built . | . . . Authchips . | . . . Time . | . . . Total Part Build Rating . | . . . Part Studies Acquired . | . . . Parts Repaired . | . . . Time . | . . . Parts Recycled . | . . . Recycled Matter . | . . . Retrieved Matter . | . . . Retrieved Components . | . . . Parts Scanalyzed . | . . . Part Schematics Acquired . | . . . Parts Damaged . | . . . Bothacking | -11 -10 -10 ------------ Run | Yrd Mat Sub Used RIF Installer . | . . . Robots Hacked . | . . . Non-combat . | . . . Combat . | . . . Robot Hacks Applied . | . . . Relay Couplers Released . | . . . Fabnet Peak Effective % . | . . . Robots Rewired . | . . . Allies Hacked . | . . . Hacks Repelled . | . . . Allies | -11 -10 -10 -------- Run | Yrd Mat Sub Total Allies . | . . . Largest Group . | . . . Highest-Rated Group . | . . . Highest-Rated Ally . | . . . Total Orders . | . . . Ally Attacks . | . . . Total Damage . | . . . Kills . | . . . Allies Corrupted . | . . . Allies Melted . | . . . Intel | -11 -10 -10 ------- Run | Yrd Mat Sub Active Infowar (turns) 2673 | . . 2673 Optics 464 | . . 464 Terrain 2209 | . . 2209 Robot Analysis Total 1 | . 1 . Derelict Logs Recovered . | . . . Drone Launches . | . . . Drone Recoveries . | . . . Exploration | -11 -10 -10 ------------- Run | Yrd Mat Sub Turns Passed 5201 | 173 1745 3283 Spaces Moved 1410 | 78 674 658 Core 6 | 6 . . Treads 1404 | 72 674 658 Legs . | . . . Wheels . | . . . Hover . | . . . Flight . | . . . Fastest Speed 50 | 50 160 320 Average Speed 321 | 151 209 455 Slowest Speed 560 | 160 320 560 Overloaded Moves . | . . . Propulsion Burnouts . | . . . Robots Hopped . | . . . Potential Cave-ins . | . . . Cave-ins Triggered . | . . . Exploration Rate (%) 43 | 5 92 34 Regions Visited 2 Branch Regions 1 Pre-discovered Areas 1 | . 1 . Known Exits Taken . | . . . Unknown Exits Taken 2 | 1 1 . Scrap Searched . | . . . Spaces Dug . | . . . Terrain Destroyed 12 | . . 12 Melee . | . . . Projectile . | . . . AOE 12 | . . 12 Terrain Rammed . | . . . Walls Destroyed . | . . . Machines Disabled . | . . . Actions | -11 -10 -10 --------- Run | Yrd Mat Sub Total 1826 | 103 903 820 Wait 199 | . 126 73 Move 1408 | 77 673 658 Hop . | . . . Pick Up 28 | 3 21 4 Fast Attach 11 | 6 3 2 Attach 10 | . 2 8 Detach 2 | . 1 1 Swap 14 | . 8 6 Drop 11 | . 10 1 Fire 142 | 17 58 67 Melee . | . . . Ram . | . . . Kick . | . . . Crush 1 | . 1 . Escape Stasis . | . . . Rewire . | . . . Trap . | . . . Miscellaneous . | . . . Route ------- -11/Scrapyard -10/Materials (discovered 5 exits: [*Mat x3] / [*Min] / [*Sub]) -10/Subcaves (discovered 1 exit: [Mat]) History --------- Turn | Location | Event 12 | -11/Scrapyard | Discovered new exit (range 15) 174 | -11/Scrapyard | Entered Materials 308 | -10/Materials | Build established: Mutant 991 | -10/Materials | Discovered new exit (range 16) 1290 | -10/Materials | Central database locked down 1389 | -10/Materials | Discovered new exit (range 7) 1622 | -10/Materials | Discovered new exit (range 14) 1833 | -10/Materials | Discovered new exit (range 16) 1891 | -10/Materials | Discovered new exit (range 5) 1919 | -10/Materials | Entered Subcaves 1920 | -10/Subcaves | Approached by a straggling Scientist 2100 | -10/Subcaves | Core integrity fell below 50% 2140 | -10/Subcaves | Lost 3 parts (1n1u1w) 2434 | -10/Subcaves | Core integrity fell below 20% 2440 | -10/Subcaves | Ambushed by Subdweller buried in earth 2720 | -10/Subcaves | Shifting Twisted Machinery released Sub. Monowheel 3009 | -10/Subcaves | Discovered new exit (range 14) 4844 | -10/Subcaves | Shifting Twisted Machinery released Sub. Power Source 4865 | -10/Subcaves | Shifting Twisted Machinery released Sub. Power Source 4865 | -10/Subcaves | Shifting Twisted Machinery released Flamer 4875 | -10/Subcaves | Shifting Twisted Machinery released Sub. Power Source 5202 | -10/Subcaves | Destroyed by 51-VPM(R) with Subdweller Machine Gun Last Messages --------------- 04931_ Assault Rifle destroyed. 04936_ BD-MJ6(R) destroyed. 04958_ System corrupted: Substantial component data lost. 04978_ Acquired Sub. Power Source. 04990_ System corrupted: Energy discharge (-54). 05013_ Acquired 68 matter. 05043_ &NETHZ=INM%NAIY/GRS2/AG=VYU7WF> 05050_ Acquired Sub. Power Source. 05071_ Subatomizers dissect the Sub. Laser. 05081_ System corrupted: Component data lost. 05085_ Subatomizers dissect the Sub. Laser. 05100_ System corrupted: Component data lost. 05109_ Subatomizers dissect the Sub. Laser. 05123_ System corrupted: Component data lost. 05123_ Subatomizers dissect the Sub. Laser. 05135_ Acquired Sub. Power Source. 05142_ UJ/6WAFDJ:GQ6RZ 05145_ Subatomizers dissect the Sub. Laser. 05167_ KUDUICVRY/1HXPDQBSQMNLMO 05200_ 51-VPM(R): "LEAVESUB!" Map ----- +----------------------------------------------------+ | ??????????????????????????????????????##?????????? | | ???????????????????????????????????#??#?????#?#??? | | ???????????????????????????????#?????????????#??## | | ???????????????????????????????????#?????#???????? | | ??????????????????????????????# ?##?????????##??## | | ????????????????????????????? ???????????##?#?? | | ????????????????????????????"? ?????#??####???? | | ???????????????????????????????? ????#?# #####? | | ??????????????????????????????? ? ##### ### | | ??????????????????????????? ?#?? ## # ## | | ???????????????????????????????#???#""" ! # | | ?????????????????????????????#????# # ## # = | | ???????????????????????????? ?????#??#####!& ### | | ???????????????????????????????""#####" ##### | | ?????????????????????????? ? """"""" ##??## | | ?????????????????#?????????? "" #???# | | ???????????????????????#??""#?# # #" #?#### | | ?????????????????????????# ?????#### ##### | | ?????????????????????????#""??######""# ## # | | ???????????????#??????##??"????###?##"" | | ?????????????????????#####""?#???#?# ""&## # | | ?????????????????????#"""" ?##?#??### ##%#### ## | | ?????????????????????#""" #?#????#?# [## ### | | ?????????????#???????#""" #####??###" ## | | ?????????????????????#" ## #### " # | | ????????????????????## @" " | # | | ??????????????????#??#""R" """ " " " ## # | | ?????????????????????#"""#######" ## # | | ?????????????????#??#""""?##??##"" ## | | ??????????????#?????## % """###""""" ##? | | ???????????????????### """"" """ ##% #?# | | ??????????????????#??## ?""""" ##### #? | | ??????????????????#??## ?"""###"" ##?? ? # | | ??????????????????????# ?????##% ###???? | | ???????????????????????? ??# #####???? ? | | ?????????????????????#?#"? ?% ????#??? ? # | | ???????????????????????#??"" ??#?? ??? ?### ## | | ??????????????????????????#"" ####?????????? #? | | ??????????????????????????## ????#? ? ?????# ##? | | ???????????????????????????## ??????#???????####?? | | ??????????????????????????#? ? ????#?#????#??#???# | | ???????????????????????????? ? ?????????????#????# | | ????????????????????????????????????????????#??### | | ??????????????????????? ????????????#?? ???????## | | ??????????????????????????????????#?#?#?????? ## | | ?????????????????????????????????#???#?? ???? | | ?????????????????????????????????????????????? | | ??????????????????????????????????????????????? | | ????????????????????????????????????????????????# | | ????????????????????????????????????????????????# | +----------------------------------------------------+ Best States ------------- Heat Dissipation 25 Energy Generation 15 Energy Capacity 250 Matter Stores 300 Matter Capacity 300 Sight Range 21 Terrain Scan Range 16 Terrain Scan Density 10 Propulsion Shielding 33 Evasion (%) 40 Recoil Reduction 2 Item Schematics ----------------- None Robot Schematics ------------------ None Fabricated ------------ Nothing Repaired ---------- Nothing Studied --------- None Alien Tech Used ----------------- None Achievements -------------- None Challenges ------------ None Game ------ Seed HardenedProjectilePlatform Manual? 0 Play Time 00:17:46 Cumulative 58.8 hours Start 2026.02.10 @ 04:00:21 End 2026.02.10 @ 04:12:45 Sessions 1 Manual Loads 0 Difficulty Rogue Special Mode None Game No. 120 Rogue 120 Adventurer 0 Explorer 0 Win Type - Total 0 Types 0/0/0/0/0/0/0/0/0/0 Lore% 35 Gallery% 31 Achievement% 29 Wizard Run 0 Options --------- Layout 0 ASCII 0 Keyboard 1 Movement Arrows Keybinds 0 Fullscreen 1 Font 18/Smallcaps Map View 38x25 Zoom Use 75% Tactical HUD 1 Map Filters NONE Filters NONE Steam 1 RUN: 04f97ee0-c95f-459e-a13d-79815ba125de